bitfinex/quotes_ETHUSD_20250414
["timestamp","ask_amount","ask_price","bid_price","bid_amount"]
[1744618613610,0.87294576,1630.2,1629.9,4.90805]
[1744618614524,0.8118,1630.2,1629.9,4.90805]
[1744618614686,5.71921,1630.2,1629.9,4.90805]
[1744618614887,4.90816,1630.0,1629.7,0.82412107]
[1744618615210,4.90873,1629.8,1629.6,2.50464068]
[1744618615620,5.73995576,1629.9,1629.6,2.50464068]
[1744618616222,0.06114576,1630.0,1629.8,4.90857]
[1744618616428,4.90799,1630.0,1629.6,8.19963068]
[1744618616593,6.27482058,1630.0,1629.6,7.41373068]
[1744618617627,0.57302756,1629.9,1629.6,7.41373068]
[1744618617935,5.48129756,1629.9,1629.6,7.41373068]
[1744618618100,0.57302756,1629.9,1629.7,4.90882]
[1744618618300,0.57302756,1629.9,1629.7,9.81764]
[1744618618527,0.5729293,1629.8,1629.7,4.90882]
[1744618618712,1.14595686,1629.8,1629.7,4.90882]
[1744618619123,1.14595686,1629.8,1629.6,2.50464068]
[1744618619306,1.14595686,1629.8,1629.6,8.23405775]
[1744618619730,0.5729293,1629.7,1629.6,8.23405775]
[1744618620030,0.5729293,1629.7,1629.6,2.50464068]
[1744618620902,1.14585751,1629.7,1629.6,2.50464068]
[1744618621222,1.14585751,1629.7,1629.6,8.20992068]
[1744618621421,0.57292821,1629.7,1629.6,8.20992068]
[1744618621615,13.63064,1630.1,1629.7,4.90876]
[1744618621825,1.99717643,1630.0,1629.7,4.90876]
[1744618622224,4.90837,1629.9,1629.6,2.50464068]
[1744618622396,5.70477,1629.8,1629.4,4.90976]
[1744618622600,4.90962,1629.5,1629.1,11.29659]
[1744618622932,10.5829,1629.5,1629.1,4.96059]
[1744618623232,5.48274667,1629.4,1629.1,4.96059]
[1744618623537,10.45386243,1629.4,1629.1,0.05]
[1744618623836,5.48305255,1629.3,1629.1,0.05]
[1744618624334,0.57301194,1629.2,1629.1,0.05]
[1744618625008,6.23305255,1629.3,1629.1,0.05]
[1744618625205,6.78047783,1629.3,1629.1,0.05]
[1744618625794,0.7599,1629.5,1629.2,4.91038]
[1744618625997,3.06114576,1629.6,1629.3,4.90995]
[1744618626199,1.14439432,1629.5,1629.3,0.7619]
[1744618626438,1.14439432,1629.5,1629.4,8.05112112]
[1744618626601,0.57219915,1629.5,1629.4,8.81302112]
[1744618626937,0.57219915,1629.5,1629.4,10.18533123]
[1744618627430,5.66788,1630.0,1629.4,5.27555123]
[1744618627733,5.66788,1630.0,1629.6,9.81786]
[1744618628233,0.57194006,1629.9,1629.7,4.90884]
[1744618628421,0.57194006,1629.9,1629.8,4.90857]
[1744618629134,0.7599,1630.0,1629.8,4.90857]
[1744618631156,0.7599,1630.0,1629.7,4.9087]
[1744618631448,0.7599,1630.0,1629.7,5.39957]
[1744618631955,0.7599,1630.0,1629.7,10.30828]
[1744618632657,0.7599,1630.0,1629.7,5.39957]
[1744618633017,0.7599,1630.0,1629.7,0.49087]
[1744618633252,4.96958576,1629.9,1629.5,4.90947]
[1744618633434,4.96958576,1629.9,1629.5,9.81885]
[1744618633635,4.96958576,1629.9,1629.5,4.90938]
[1744618633956,6.03334934,1629.9,1629.5,4.90938]
[1744618634252,0.06114576,1629.9,1629.4,0.7619]
[1744618634464,0.7599,1630.0,1629.8,4.90857]
[1744618636958,4.90841,1629.9,1629.5,5.70554]
[1744618637862,4.90841,1629.9,1629.5,10.61485]
[1744618638970,5.73978576,1629.8,1629.4,4.90977]
[1744618639268,0.57397858,1629.7,1629.4,4.90977]
[1744618639471,0.57397858,1629.7,1629.4,9.81938]
[1744618639968,0.57397858,1629.7,1629.4,4.90961]
[1744618640537,4.90918,1629.6,1629.3,4.91006]
[1744618640736,0.817,1629.5,1629.3,4.91006]
[1744618641971,1.39573258,1629.5,1629.2,4.91028]
[1744618642175,6.30524258,1629.5,1629.2,4.91028]
[1744618642341,4.97098576,1629.4,1629.1,4.96068]
[1744618642536,0.06114576,1629.4,1629.1,4.96068]
[1744618643467,0.06114576,1629.4,1629.1,0.05]
[1744618643660,0.8178,1629.7,1629.5,4.90928]
[1744618643857,0.8178,1629.9,1629.7,4.90887]
[1744618644056,0.8178,1629.9,1629.4,8.11248515]
[1744618644057,0.8178,1629.9,1629.6,4.90907]
[1744618644241,5.78730576,1629.9,1629.5,4.90935]
[1744618644448,0.87894576,1629.9,1629.5,4.90948]
[1744618644775,3.82544576,1630.1,1629.6,6.165918]
[1744618645078,3.82544576,1630.1,1629.7,4.90861]
[1744618645281,8.73313576,1630.1,1629.8,4.90844]
[1744618646077,0.82544576,1630.1,1629.8,4.90828]
[1744618646277,0.82544576,1630.1,1629.6,4.39808912]
[1744618646278,0.7643,1630.1,1629.9,4.90797]
[1744618646769,6.334,1630.2,1630.0,4.90797]
[1744618646971,1.38726576,1630.2,1629.9,4.90826]
[1744618647148,6.29464576,1630.2,1629.8,4.90844]
[1744618647578,6.29464576,1630.2,1629.8,4.90839]
[1744618648882,0.782,1630.1,1629.8,4.90839]
[1744618649076,5.68968,1630.1,1629.8,4.90839]
[1744618649286,0.63011376,1630.0,1629.7,9.81756]
[1744618649461,0.568968,1630.0,1629.7,9.87891358]
[1744618649777,5.75082576,1630.1,1629.7,9.87891358]
[1744618649988,0.782,1630.1,1629.9,4.90823]
[1744618650284,0.762,1630.2,1629.9,9.81637]
[1744618650649,5.66937,1630.2,1629.9,4.90814]
[1744618650850,0.762,1630.2,1629.9,9.81629]
[1744618651056,0.82314576,1630.2,1629.9,9.81629]
[1744618651282,0.82314576,1630.2,1629.9,9.81625]
[1744618653282,0.82314576,1630.2,1629.9,4.90811]
[1744618653450,2.18690034,1630.2,1629.9,4.90811]
[1744618653650,7.09428034,1630.2,1629.8,4.90842]
[1744618654087,7.09428034,1630.2,1629.8,9.81684]
[1744618654493,2.18690034,1630.2,1629.9,9.81642]
[1744618654693,0.82314576,1630.2,1629.9,9.81642]
[1744618655090,0.82314576,1630.2,1629.9,4.90817]
[1744618655398,0.82314576,1630.2,1629.9,9.8163]
[1744618656172,0.82314576,1630.2,1629.9,4.90813]
[1744618656783,0.762,1630.2,1630.0,4.90797]
[1744618657064,3.06114576,1630.3,1630.1,4.90767]
[1744618657065,3.0,1630.3,1630.1,4.90767]
[1744618657576,14.21755112,1630.6,1630.5,4.90636]
[1744618657577,0.7993,1630.6,1630.5,4.90636]
[1744618657763,54.011,1630.9,1630.2,5.68084]
[1744618657764,0.86044576,1630.8,1630.7,4.90586]
[1744618657960,9.78077543,1631.2,1630.8,4.9055]
[1744618657961,0.06114576,1631.0,1630.8,4.9055]
[1744618658265,20.54471112,1631.2,1630.9,4.90526]
[1744618658266,12.499,1631.2,1630.9,4.90526]
[1744618658485,12.499,1631.2,1630.8,4.90538]
[1744618658486,4.96581576,1631.1,1630.8,4.90538]
[1744618658798,3.0,1631.1,1630.8,4.90538]
[1744618658996,8.866409,1631.2,1630.9,4.90511]
[1744618659191,8.92755476,1631.2,1630.9,4.90511]
[1744618659608,7.1488,1631.4,1631.1,4.90448]
[1744618659771,7.20994576,1631.4,1631.1,4.90448]
[1744618659975,7.20994576,1631.4,1631.2,4.90432]
[1744618660177,7.20994576,1631.4,1631.1,9.80896]
[1744618660372,7.1488,1631.4,1631.2,4.90434]
[1744618660773,0.8208,1631.4,1631.2,4.90424]
[1744618660983,0.06114576,1631.5,1631.3,4.90392]
[1744618661162,0.84214576,1631.8,1631.5,4.90331]
[1744618661367,0.781,1631.8,1631.5,4.90331]
[1744618661590,5.68374,1631.8,1631.4,4.90375]
[1744618661898,5.68374,1631.8,1631.3,4.90405]
[1744618661899,4.96412576,1631.7,1631.3,4.90405]
[1744618662096,4.96412576,1631.7,1631.3,4.9039]
[1744618662700,0.06114576,1631.7,1631.3,4.90387]
[1744618662897,0.06114576,1631.7,1631.3,5.6323587]
[1744618663072,0.781,1631.8,1631.5,4.90341]
[1744618663282,5.68356,1631.8,1631.4,4.90362]
[1744618663781,0.781,1631.8,1631.4,4.90357]
[1744618665000,0.781,1631.8,1631.5,4.90344]
[1744618665180,0.781,1631.8,1631.5,5.884141]
[1744618665378,0.781,1631.8,1631.5,0.980701]
[1744618665878,0.781,1631.8,1631.5,5.884151]
[1744618666601,5.68359,1631.8,1631.5,0.980701]
[1744618667175,10.58635,1631.8,1631.5,0.980701]
[1744618667505,5.68359,1631.8,1631.4,4.90357]
[1744618667799,4.90319,1631.6,1631.2,5.69147]
[1744618668000,0.8094,1631.4,1631.0,0.7954]
[1744618668206,4.90471,1631.1,1630.8,0.7954]
[1744618668401,3.0,1631.3,1630.8,4.20201612]
[1744618668733,7.90408,1631.3,1630.9,9.81035]
[1744618668935,7.90408,1631.3,1630.9,4.90509]
[1744618669088,3.0,1631.3,1631.0,4.90495]
[1744618669473,3.0,1631.3,1631.0,9.80976]
[1744618669823,7.90328,1631.6,1631.2,4.90433]
[1744618669973,4.90347,1631.5,1631.1,4.90464]
[1744618670172,9.80717,1631.5,1631.1,4.90464]
[1744618670372,9.86831576,1631.5,1631.1,4.90464]
[1744618671017,9.80771,1631.4,1631.0,4.90493]
[1744618671173,4.90408,1631.3,1631.0,4.90493]
[1744618671575,4.90376,1631.4,1631.0,11.502699]
[1744618671770,4.96462576,1631.5,1631.2,4.9043]
[1744618672012,8.71257,1631.6,1631.2,4.9043]
[1744618672217,8.77371576,1631.6,1631.3,4.90402]
[1744618672538,4.90388,1631.4,1631.0,4.90495]
[1744618672819,4.90357,1631.5,1631.1,4.90455]
[1744618673017,4.90357,1631.5,1631.0,6.59792]
[1744618673018,4.90389,1631.4,1631.0,9.80981]
[1744618673221,0.7863,1631.3,1630.9,10.60577]
[1744618673376,0.7863,1631.3,1631.0,4.9047]
[1744618673575,5.75092576,1631.5,1631.1,4.90464]
[1744618673775,5.75092576,1631.5,1631.1,9.80915]
[1744618673988,10.65457576,1631.5,1631.1,9.80907]
[1744618674284,12.02004334,1631.5,1631.1,4.90451]
[1744618674493,7.11638334,1631.5,1631.1,4.90451]
[1744618674695,7.05523758,1631.5,1631.1,4.96580081]
[1744618674892,3.0,1631.6,1631.3,4.90394]
[1744618675271,6.324,1631.7,1631.4,4.9036]
[1744618675487,5.731,1631.9,1631.5,4.90345]
[1744618675677,4.9026,1631.8,1631.5,0.7569]
[1744618676826,5.79214576,1631.9,1631.5,5.66034]
[1744618677511,5.79214576,1631.9,1631.5,11.620023]
[1744618677678,5.79214576,1631.9,1631.5,6.716583]
[1744618678114,3.88984576,1631.9,1631.6,4.90314]
[1744618678404,17.39596,1632.0,1631.7,4.90281]
[1744618678807,17.39596,1632.0,1631.6,4.90314]
[1744618679007,17.39596,1632.0,1631.6,5.58091163]
[1744618679432,17.39596,1632.0,1631.7,4.90276]
[1744618679634,12.494,1632.0,1631.7,4.90276]
[1744618680038,6.17,1632.0,1631.7,4.90276]
[1744618680237,11.13312576,1632.0,1631.7,4.90276]
[1744618680557,4.90198,1632.0,1631.7,5.95108716]
[1744618680856,5.65475,1632.1,1631.8,4.90244]
[1744618682527,18.20862,1632.4,1632.0,4.90183]
[1744618682744,4.96235576,1632.3,1631.9,5.69262]
[1744618683108,4.96235576,1632.3,1631.9,11.654223]
[1744618683634,4.96235576,1632.3,1632.0,4.90194]
[1744618683839,4.90121,1632.3,1632.0,4.90194]
[1744618684341,4.96235576,1632.3,1632.0,4.90194]
[1744618685353,4.96235576,1632.3,1631.9,11.654153]
[1744618685557,4.96235576,1632.3,1631.9,11.654163]
[1744618685911,4.90121,1632.3,1632.0,4.90192]
[1744618686417,0.05,1632.4,1632.3,4.90105]
[1744618686612,0.05,1632.4,1632.3,0.0612577]
[1744618686848,0.05,1632.4,1632.3,4.90105]
[1744618687356,0.05,1632.4,1632.2,5.65513]
[1744618687562,0.05,1632.4,1632.2,6.710805]
[1744618687856,0.05,1632.4,1632.3,4.90105]
[1744618688026,0.05,1632.4,1632.3,11.97305]
[1744618688627,0.05,1632.4,1632.3,12.52305]
[1744618689522,0.05,1632.4,1632.3,11.97305]
[1744618689719,0.05,1632.4,1632.3,7.77204129]
[1744618691237,0.05,1632.4,1632.3,10.90006517]
[1744618692054,0.05,1632.4,1632.3,7.77204129]
[1744618692234,0.05,1632.4,1632.3,4.90105]
[1744618693446,0.05,1632.4,1632.2,4.18369888]
[1744618693646,0.05,1632.4,1632.1,5.71598]
[1744618693827,0.05,1632.4,1632.2,4.90135]
[1744618694956,0.05,1632.4,1632.2,8.02920388]
[1744618695348,0.05,1632.4,1632.3,4.90105]
[1744618696058,0.05,1632.4,1632.1,8.84413388]
[1744618696261,0.05,1632.4,1632.1,5.71598]
[1744618696468,4.9509,1632.4,1632.0,11.70081041]
[1744618697484,9.85187,1632.4,1632.0,11.70081041]
[1744618697640,4.9509,1632.4,1632.0,11.70081041]
[1744618698260,4.90118,1632.3,1632.0,11.70093041]
[1744618698464,4.90118,1632.3,1632.0,11.76219696]
[1744618698836,0.05,1632.4,1632.1,4.90149]
[1744618699444,9.85175,1632.4,1632.0,11.70094041]
[1744618699648,4.95081,1632.4,1632.0,11.70094041]
[1744618699966,4.95081,1632.4,1632.1,4.90165]
[1744618700566,4.95081,1632.4,1632.0,11.70094041]
[1744618701063,4.95081,1632.4,1632.0,16.60274041]
[1744618701264,0.05,1632.4,1632.1,6.62304724]
[1744618701435,0.05,1632.4,1632.2,8.02920388]
[1744618701635,0.05,1632.4,1632.3,4.96230606]
[1744618701849,0.05,1632.4,1632.3,4.90105]
[1744618702276,0.05,1632.4,1632.3,4.96229904]
[1744618702567,0.05,1632.4,1632.3,6.28056029]
[1744618702964,0.05,1632.4,1632.3,7.06686029]
[1744618703165,0.05,1632.4,1632.3,16.93286029]
[1744618703540,0.05,1632.4,1632.3,16.38286029]
[1744618704134,0.05,1632.4,1632.3,7.06686029]
[1744618704806,0.05,1632.4,1632.3,7.12811233]
[1744618704978,0.05,1632.4,1632.3,7.06686029]
[1744618705178,0.05,1632.4,1632.3,7.12811235]
[1744618705516,0.05,1632.4,1632.3,6.28056029]
[1744618705994,0.05,1632.4,1632.2,14.34520388]
[1744618706377,0.05,1632.4,1632.3,0.06125629]
[1744618706686,0.05,1632.4,1632.2,14.34520388]
[1744618707711,0.05,1632.4,1632.3,4.96230623]
[1744618709018,0.05,1632.4,1632.3,4.90105]
[1744618709221,0.05,1632.4,1632.3,6.82567539]
[1744618711822,0.05,1632.4,1632.3,6.88692753]
[1744618712027,0.05,1632.4,1632.3,8.21652753]
[1744618712190,0.05,1632.4,1632.3,8.15527539]
[1744618712397,0.05,1632.4,1632.3,7.60527539]
[1744618716021,0.05,1632.4,1632.3,10.66652087]
[1744618716233,0.05,1632.4,1632.3,10.60527539]
[1744618717314,0.05,1632.4,1632.3,10.66651102]
[1744618717725,0.05,1632.4,1632.3,10.60527539]
[1744618720138,0.05,1632.4,1632.3,10.666511]
[1744618720349,0.762,1633.2,1632.9,4.89908]
[1744618720502,0.762,1633.2,1633.0,5.388758]
[1744618721199,0.762,1633.2,1633.0,5.44993556]
[1744618721405,0.762,1633.2,1633.0,0.489908]
[1744618721633,5.66038,1633.2,1633.0,0.489908]
[1744618721830,0.762,1633.2,1633.0,0.489908]
[1744618722004,0.762,1633.2,1633.0,5.45004646]
[1744618722206,0.762,1633.2,1633.1,0.54500465]
[1744618722808,0.762,1633.2,1633.0,0.489908]
[1744618724420,5.66039,1633.2,1633.0,0.489908]
[1744618724632,5.66039,1633.2,1632.8,4.89939]
[1744618724832,10.55896,1633.2,1632.8,4.89939]
[1744618725545,10.55895,1633.2,1632.8,4.89939]
[1744618726356,0.8199,1633.0,1632.7,19.23959388]
[1744618726662,0.8199,1633.0,1632.7,16.11157]
[1744618726826,0.8199,1633.0,1632.7,17.801487]
[1744618727662,4.89939,1632.9,1632.5,4.9003]
[1744618727830,4.89939,1632.9,1632.4,3.91562388]
[1744618727831,5.71958,1632.8,1632.4,4.90062]
[1744618728026,0.8199,1632.8,1632.5,4.90032]
[1744618729757,5.71949,1632.8,1632.5,4.90032]
[1744618729931,5.71949,1632.8,1632.4,4.90062]
[1744618730131,5.71949,1632.8,1632.4,6.38605193]
[1744618730332,5.71949,1632.8,1632.4,11.28667193]
[1744618731974,0.8091,1632.6,1632.3,6.82564539]
[1744618732968,5.70928,1632.6,1632.3,6.82564539]
[1744618735067,4.90057,1632.5,1632.2,6.311]
[1744618735284,0.85054576,1632.4,1632.0,2.50557423]
[1744618735484,5.69106,1632.1,1632.0,2.50557423]
[1744618735683,0.7894,1632.1,1632.0,2.50557423]
[1744618737277,5.75220576,1632.1,1632.0,2.50557423]
[1744618738541,0.7894,1632.1,1632.0,2.50557423]
[1744618738741,3.84744576,1632.3,1632.0,8.14829465]
[1744618738952,3.84744576,1632.3,1632.0,7.40753423]
[1744618739245,8.74853576,1632.3,1632.0,7.40753423]
[1744618739573,8.74853576,1632.3,1632.0,2.50557423]
[1744618739869,4.90142,1632.2,1632.0,2.50557423]
[1744618740242,9.80298,1632.2,1632.0,2.50557423]
[1744618740445,4.90142,1632.2,1632.0,2.50557423]
[1744618740648,8.68739,1632.3,1632.0,2.50557423]
[1744618740878,8.74853576,1632.3,1632.0,2.50557423]
[1744618741467,4.90137,1632.2,1632.0,2.50557423]
[1744618742670,10.68352058,1632.3,1632.0,2.50557423]
[1744618742866,0.7863,1632.3,1632.0,7.40742423]
[1744618743169,5.68742,1632.3,1632.0,2.50557423]
[1744618743380,0.7863,1632.3,1632.0,7.46866143]
[1744618743537,0.7863,1632.3,1632.0,5.63359811]
[1744618743738,0.7863,1632.3,1632.1,4.90153]
[1744618743986,5.68736,1632.3,1632.0,7.40748423]
[1744618744168,0.7863,1632.3,1632.1,0.74074842]
[1744618744353,0.7863,1632.3,1632.1,5.64234842]
[1744618744675,5.68737,1632.3,1632.1,0.74074842]
[1744618744847,0.7863,1632.3,1632.1,0.74074842]
[1744618745189,0.7863,1632.3,1632.0,7.40742423]
[1744618745484,0.7863,1632.3,1632.0,7.40739423]
[1744618745783,5.68741,1632.3,1632.0,2.50557423]
[1744618746102,4.90149,1632.2,1632.0,2.50557423]
[1744618746377,0.8266,1632.1,1632.0,2.50557423]
[1744618746673,5.72826,1632.1,1632.0,2.50557423]
[1744618747573,0.8266,1632.1,1632.0,2.50557423]
[1744618747979,3.0,1632.2,1632.0,2.50557423]
[1744618749375,7.96253576,1632.2,1632.0,2.50557423]
[1744618749543,3.0,1632.2,1632.0,2.50557423]
[1744618749746,3.0,1632.2,1632.0,7.40751423]
[1744618750366,3.0,1632.2,1632.0,8.63849065]
[1744618750878,7.1131,1632.3,1632.0,8.63849065]
[1744618751056,0.8264,1632.5,1632.3,4.90101]
[1744618751251,0.8264,1632.5,1632.2,4.90114]
[1744618751468,3.8264,1632.5,1632.2,4.90114]
[1744618751676,0.8264,1632.5,1632.3,4.90093]
[1744618751984,0.8264,1632.5,1632.3,9.80186]
[1744618752194,0.7994,1632.6,1632.3,9.80186]
[1744618752359,0.7994,1632.6,1632.3,4.90093]
[1744618752694,0.7629,1632.7,1632.4,9.8624457]
[1744618752893,0.7629,1632.7,1632.4,9.80119]
[1744618753398,0.7629,1632.7,1632.4,10.58369]
[1744618753765,0.7629,1632.7,1632.5,4.90042]
[1744618754963,7.96070576,1632.8,1632.5,4.90029]
[1744618754964,3.0,1632.8,1632.5,4.90029]
[1744618755305,3.0,1632.8,1632.7,4.89985]
[1744618755969,11.96188576,1633.0,1632.6,4.89998]
[1744618756172,4.8993,1632.9,1632.6,4.89998]
[1744618756681,11.90074,1633.0,1632.6,4.89998]
[1744618756893,11.96188576,1633.0,1632.6,9.79998]
[1744618757066,5.73074,1633.0,1632.6,11.09278039]
[1744618757267,5.79188576,1633.0,1632.6,11.09278039]
[1744618757569,5.79188576,1633.0,1632.6,11.09281039]
[1744618757977,0.8316,1633.0,1632.7,4.96109086]
[1744618758291,0.8316,1633.0,1632.7,5.71183086]
[1744618758459,0.8316,1633.0,1632.7,6.41229399]
[1744618758665,0.8316,1633.0,1632.7,6.412294]
[1744618759159,0.8316,1633.0,1632.7,6.35105313]
[1744618759364,4.89927,1632.9,1632.7,0.7509]
[1744618759575,4.89985,1632.7,1632.4,11.98574]
[1744618759792,0.7852,1632.8,1632.2,5.96813105]
[1744618759793,0.7852,1632.8,1632.2,6.74213105]
[1744618760016,5.68551,1632.6,1632.2,9.80224]
[1744618760212,5.68551,1632.6,1632.1,15.59902388]
[1744618760213,0.7852,1632.6,1632.3,4.96210626]
[1744618760516,0.7852,1632.6,1632.3,5.72770626]
[1744618762541,5.68537,1632.6,1632.3,4.90085]
[1744618762837,5.68537,1632.6,1632.3,4.9621063]
[1744618763691,0.7852,1632.6,1632.3,4.9621063]
[1744618764604,0.7852,1632.6,1632.3,4.90085]
[1744618764907,0.7852,1632.6,1632.3,5.9423233]
[1744618765936,0.7852,1632.6,1632.3,5.881067]
[1744618768905,5.68541,1632.6,1632.3,5.881067]
[1744618769106,14.65044933,1633.0,1632.8,4.89955]
[1744618769107,6.17,1633.0,1632.8,4.89955]
[1744618769296,0.87834576,1633.1,1632.9,4.89909]
[1744618769699,0.8172,1633.1,1632.9,4.89909]
[1744618770122,0.89014576,1633.2,1632.9,4.89909]
[1744618770328,6.37214576,1633.3,1633.0,4.89884]
[1744618770633,3.0,1633.2,1633.0,4.89884]
[1744618770835,7.89839,1633.2,1632.9,4.89909]
[1744618771034,7.89849,1633.2,1632.9,1.29266439]
[1744618771234,3.0,1633.2,1632.9,6.19178439]
[1744618772067,3.06114576,1633.2,1632.9,6.19178439]
[1744618772254,7.95964576,1633.2,1632.8,8.02742388]
[1744618772459,7.95964576,1633.2,1632.8,12.92687388]
[1744618772759,0.8216,1633.1,1632.8,8.02742388]
[1744618773362,0.8216,1633.1,1632.8,12.98803931]
[1744618773568,0.8216,1633.1,1632.8,8.02740388]
[1744618773777,0.8216,1633.1,1632.8,4.89938]
[1744618774387,5.78141576,1633.1,1632.7,4.89983]
[1744618774678,5.78141576,1633.1,1632.6,9.80003]
[1744618774679,4.89906,1633.0,1632.6,9.80003]
[1744618775183,0.06114576,1632.9,1632.6,9.80003]
[1744618775587,4.96020576,1633.0,1632.6,9.80003]
[1744618776088,0.06114576,1633.0,1632.7,4.89984]
[1744618777679,4.96017576,1633.0,1632.7,4.89984]
[1744618779937,9.85930576,1633.0,1632.6,4.90012]
[1744618780277,4.96017576,1633.0,1632.6,4.90012]
[1744618780480,4.96017576,1633.0,1632.7,4.8998]
[1744618784402,0.7508,1632.9,1632.3,0.980217]
[1744618784643,4.96083576,1632.8,1632.4,9.80123]
[1744618786106,4.96083576,1632.8,1632.5,4.90043]
[1744618788264,0.06114576,1632.8,1632.5,9.80078]
[1744618788464,0.8232,1633.0,1632.7,4.89985]
[1744618788690,0.8232,1633.0,1632.8,4.89939]
[1744618788854,0.8232,1633.1,1632.9,4.89925]
[1744618789071,0.8232,1633.1,1632.9,9.79836]
[1744618789787,0.8232,1633.1,1632.9,4.89911]
[1744618789969,11.2092,1633.3,1633.0,4.89895]
[1744618790185,12.09354576,1633.3,1633.0,4.89895]
[1744618790589,3.88434576,1633.3,1633.0,9.79774]
[1744618790784,3.88434576,1633.3,1633.0,4.89879]
[1744618791163,8.78242576,1633.3,1633.0,4.89879]
[1744618792007,3.8232,1633.3,1633.0,9.79759]
[1744618792218,3.8232,1633.3,1633.0,10.8753356]
[1744618792886,3.8232,1633.3,1633.0,5.9765356]
[1744618793090,8.78254576,1633.3,1632.9,5.879086]
[1744618793263,13.68080576,1633.3,1632.9,5.879086]
[1744618793463,8.7214,1633.3,1632.9,10.778206]
[1744618793763,8.78254576,1633.3,1632.9,10.778206]
[1744618794065,0.88434576,1633.3,1632.9,0.979866]
[1744618794269,0.05,1633.4,1633.3,4.89805]
[1744618794502,0.05,1633.4,1633.3,5.74466793]
[1744618794811,1e-05,1633.4,1633.3,9.29466793]
[1744618794989,0.84184576,1634.2,1634.0,4.89594]
[1744618795168,0.06114576,1634.3,1634.1,4.89566]
[1744618795366,0.89784576,1634.4,1634.1,9.79132]
[1744618795582,0.89784576,1634.4,1634.1,4.89566]
[1744618795779,5.73147,1634.4,1634.0,4.95712399]
[1744618795979,0.06114576,1634.3,1633.9,8.02412388]
[1744618796175,0.8367,1634.4,1634.3,4.89506]
[1744618796381,0.8367,1634.4,1634.2,4.89535]
[1744618796382,0.05,1634.4,1634.2,4.89535]
[1744618796580,0.05,1634.4,1634.1,4.89564]
[1744618796878,5.69068,1634.3,1633.9,8.02411388]
[1744618797072,0.7956,1634.3,1634.0,9.85273214]
[1744618797472,0.7956,1634.3,1634.1,4.8956]
[1744618797701,0.7956,1634.3,1634.0,6.25501774]
[1744618797996,4.89447,1634.5,1634.0,6.25501774]
[1744618798185,4.8953,1634.3,1633.8,5.65978]
[1744618798384,4.8953,1634.3,1633.8,5.65967]
[1744618798588,4.8953,1634.3,1633.9,4.89624]
[1744618799100,4.8945,1634.5,1634.0,4.89571]
[1744618799404,3.63310915,1634.4,1634.0,4.95690217]
[1744618799600,3.63310915,1634.4,1633.9,4.89623]
[1744618799802,4.89506,1634.3,1633.9,4.89623]
[1744618800011,0.13644292,1634.2,1633.9,4.89623]
[1744618800876,0.13644292,1634.2,1633.9,9.79233]
[1744618801284,0.8035,1634.3,1634.1,4.89563]
[1744618801484,3.0,1634.4,1633.9,8.88342747]
[1744618801694,5.71218,1634.3,1633.8,5.65972]
[1744618801894,0.817,1634.3,1633.9,4.89607]
[1744618802095,0.817,1634.3,1634.0,4.89584]
[1744618802297,6.583299,1634.3,1633.9,9.79238]
[1744618802501,6.583299,1634.3,1633.9,4.89613]
[1744618802806,5.65622,1634.0,1633.6,4.89703]
[1744618803005,5.65622,1634.0,1633.6,4.89698]
[1744618803208,0.7601,1634.0,1633.5,9.42802388]
[1744618803406,3.0,1634.1,1633.9,4.89626]
[1744618803710,2.99858695,1634.1,1633.9,4.89626]
[1744618804206,6.9221,1634.2,1633.9,9.79237]
[1744618804524,6.9221,1634.2,1634.0,4.89596]
[1744618804677,0.7521,1634.2,1634.0,4.89596]
[1744618804880,0.7521,1634.2,1634.0,4.89583]
[1744618805079,7.1272,1634.4,1634.1,4.89566]
[1744618805311,7.1272,1634.4,1634.1,9.79113]
[1744618805312,9.43584,1634.4,1634.1,9.79113]
[1744618805478,9.43584,1634.4,1634.2,4.8953]
[1744618806372,7.1272,1634.4,1634.2,4.8953]
[1744618806581,12.02217,1634.4,1634.0,4.89594]
[1744618806877,12.02217,1634.4,1633.9,9.79234]
[1744618806878,4.89524,1634.3,1633.9,9.79234]
[1744618807197,4.89524,1634.3,1633.9,4.89611]
[1744618807383,12.022,1634.4,1633.9,4.89608]
[1744618807586,19.04894239,1634.4,1634.0,4.8957]
[1744618808278,4.89511,1634.3,1633.9,4.89624]
[1744618808510,9.79035,1634.3,1633.9,4.89624]
[1744618808805,7.1272,1634.4,1633.8,0.7925]
[1744618808983,7.1272,1634.4,1634.0,4.89594]
[1744618809307,4.89522,1634.3,1633.9,9.79232]
[1744618809605,12.02219,1634.4,1634.0,4.89594]
[1744618809912,16.91722,1634.4,1634.0,4.89584]
[1744618810279,12.02219,1634.4,1634.0,9.79164]
[1744618810706,12.02213,1634.4,1634.0,4.8958]
[1744618810879,4.89513,1634.3,1633.9,4.89622]
[1744618811080,0.7775,1634.1,1633.8,4.89642]
[1744618811410,5.67327,1634.1,1633.7,4.89682]
[1744618811708,4.89599,1634.0,1633.7,4.89682]
[1744618812083,9.79214,1634.0,1633.6,5.83991239]
[1744618812275,0.7996,1633.9,1633.6,5.83991239]
[1744618812698,5.69589,1633.9,1633.6,5.83991239]
[1744618812899,4.89703,1633.7,1633.3,9.79595]
[1744618813101,4.89703,1633.7,1633.3,4.89792]
[1744618813277,4.89659,1633.8,1633.4,4.89769]
[1744618813478,9.79334,1633.8,1633.4,4.89769]
[1744618813679,0.7996,1633.9,1633.5,3.18924192]
[1744618813880,3.8015,1634.1,1633.8,4.89644]
[1744618814127,8.69733,1634.1,1633.7,4.89681]
[1744618814291,8.69733,1634.1,1633.6,0.7536]
[1744618814292,4.89597,1634.0,1633.6,5.65058]
[1744618814495,4.89597,1634.0,1633.7,0.565058]
[1744618814833,0.13209272,1633.9,1633.7,5.461898]
[1744618814994,0.13209272,1633.9,1633.7,0.565058]